Cogmind - Beta 16.1 @@@ ROGUE MODE // 2026.04.26 @ 23:03:06 Player: JovialTruth Result: Destroyed by S-10 Pest with Light Assault Rifle Performance ------------- Evolutions (0) 0 Regions Visited (1) 200 Robots Destroyed (8) 40 Value Destroyed (219) 219 Prototype IDs (0) 0 Alien Tech Used (0) 0 Bonus (0) 0 TOTAL SCORE: 459 Bonus ------- None Cogmind --------- Core Integrity 0/250 Matter 242/300 Energy 74/100 System Corruption 4% Temperature Cool (0) Movement Rolling (95) Ox1 Location -10/Materials Parts ------- > --- POWER (1) -------- (None) > --- PROPULSION (2) --- Wheel > --- UTILITY (2) ------ Medium Storage Unit ECM Suite > --- WEAPON (2) ------- Hammer > --- INVENTORY (10) --- Hover Unit Flight Unit Medium Matter Pod (0) Signal Interpreter Seismic Detector Utility Shielding Light Armor Plating Peak State ------------ > --- POWER ------------ Light Ion Engine > --- PROPULSION ------- Wheel > --- UTILITY ---------- Heat Sink ECM Suite > --- WEAPON ----------- Medium Laser Medium Laser > --- INVENTORY -------- Wheel [Rating: 6] Favorites ----------- Power Light Ion Engine Engine Light Ion Engine Propulsion Wheel Wheel Wheel Utility ECM Suite Device ECM Suite Storage Medium Storage Unit Weapon Medium Laser Energy Gun Medium Laser Impact Weapon Hammer Build | -11 -10 ------- Run | Yrd Mat Slots Evolved . | . . Power . | . . Propulsion . | . . Utility . | . . Weapon . | . . Parts Attached 12 | 5 7 Power 3 | 1 2 Engine 3 | 1 2 Core . | . . Reactor . | . . Propulsion 2 | 1 1 Treads . | . . Leg . | . . Wheel 2 | 1 1 Hover . | . . Flight . | . . Utility 4 | 1 3 Device 2 | 1 1 Storage 2 | . 2 Processor . | . . Hackware . | . . Protection . | . . Artifact . | . . Weapon 3 | 2 1 Energy Gun 2 | 2 . Energy Cannon . | . . Ballistic Gun . | . . Ballistic Cannon . | . . Launcher . | . . Special Weapon . | . . Impact Weapon 1 | . 1 Slashing Weapon . | . . Piercing Weapon . | . . Special Melee Weapon . | . . Unidentified Prototypes . | . . Parts Lost 6 | . 6 Power 2 | . 2 Propulsion 1 | . 1 Utility 1 | . 1 Weapon 2 | . 2 Highest Loss Streak 4 | . 4 To Critical Strikes . | . . Average Backups 3 | . 3 Power . | . . Propulsion 1 | . 1 Utility 1 | . 1 Weapon . | . . Tool/Special . | . . Unused Backups 6 | . 6 Power . | . . Propulsion 2 | . 2 Utility 4 | . 4 Weapon . | . . Tool/Special . | . . Average Slot Usage (%) 75 | . 75 Engine 12 | . 12 Wheel 13 | . 13 Device 16 | . 16 Storage 8 | . 8 Energy Gun 17 | . 17 Impact Weapon 6 | . 6 Peak Build Rating 6 | 5 6 Average Rating 5 | 3 5 On Entrance 2 | . 5 Avg Prop Armor Cover (%) 8 | . 8 Naked Turns . | . . Heaviest Build 21 | 8 21 Greatest Support 10 | 10 10 Greatest Overweight (x) 3 | . 3 Average Overweight (x) 1 | . 1 Largest Inventory Capacity 10 | 5 10 Average Capacity 7 | 5 7 Most Carried 8 | 1 8 Average Carried 3 | . 3 Final Capacity 10 | 5 10 Final Carried 7 | 1 7 Class Distribution -------------------- 100% | Mutant Dominant Class ---------------- Mutant | -10/Materials Resources | -11 -10 ----------- Run | Yrd Mat Matter Collected 280 | 250 30 Remotely . | . . Salvage Created 261 | 36 225 Parts 9 | 1 8 Haulers Intercepted . | . . Recyclers Shooed . | . . Parts Field Recycled . | . . Retrieved Matter . | . . Parts Self-Destructed . | . . Prevented . | . . Parts Restored . | . . Kills | -11 -10 ------- Run | Yrd Mat Combat Hostiles Destroyed 7 | 1 6 Melee 1 | . 1 Guns 4 | 1 3 Classes Destroyed 3 | 1 2 Watcher 1 | . 1 Swarmer 2 | . 2 Grunt 5 | 1 4 Best Kill Streak 2 | 1 2 Combat Bots Only 2 | 1 2 Max Kills in Single Turn 1 | 1 1 Gunslinging . | . . Exploded . | . . Melee 1 | . 1 Uniques/NPCs Destroyed . | . . Combat | -11 -10 -------- Run | Yrd Mat Hostile Shots Fired 82 | 4 78 Missed 16 | . 16 Hits 66 | 4 62 Projectile 66 | 4 62 Critical Strikes 2 | . 2 Damage Taken 661 | 46 615 Core 250 | 35 215 Absorbed by Shields . | . . Core Remaining (%) 86 | 86 . Volleys Fired 18 | 2 16 Largest 2 | 2 2 Hottest 100 | 100 100 Shots Fired 31 | 4 27 Gun 31 | 4 27 Cannon . | . . Launcher . | . . Special . | . . Kinetic . | . . Thermal 31 | 4 27 Explosive . | . . Electromagnetic . | . . Robot Hit Streak 6 | 1 6 Robot Miss Streak 2 | 2 1 Penetration Max . | . . Secondary Targets . | . . Shots Hit Robots 27 | 2 25 Core Hits 11 | 2 9 Critical Kills . | . . Critical Parts Destroyed . | . . Critical Strikes 1 | . 1 Burn 1 | . 1 Melee Attacks 15 | . 15 Impact 15 | . 15 Slashing . | . . Piercing . | . . Sneak Attacks . | . . Combat Hostiles . | . . Follow-up Attacks . | . . Damage Inflicted 395 | 26 369 Guns 275 | 26 249 Cannons . | . . Explosions . | . . Melee 120 | . 120 Ramming . | . . Kinetic . | . . Thermal 275 | 26 249 Explosive . | . . Electromagnetic . | . . Impact 120 | . 120 Slashing . | . . Piercing . | . . Highest Corruption 4 | . 4 Average Corruption 3 | . 3 Corruption Purged . | . . Corruption Blocked . | . . Effects 4 | . 4 Message Errors 1 | . 1 Matter Fused 2 | . 2 Data Loss (minor) 1 | . 1 Overload Shots . | . . Overflow Damage 29 | . 29 Projectiles . | . . Explosions . | . . Melee 29 | . 29 Knockbacks . | . . Impact . | . . Kinetic . | . . Secondary . | . . Self-Inflicted Damage . | . . Shots . | . . Rammed . | . . Targets Rammed . | . . Kicked . | . . Crushed . | . . Highest Temperature 96 | 56 96 Average Temperature 36 | 32 37 Received Heat Transfer 231 | 24 207 Siege Activations . | . . Martial Activations . | . . Shielding Activations . | . . Robots Disrupted . | . . Combat Hostiles . | . . Robots Corrupted 1 | . 1 Combat Hostiles 1 | . 1 Parts Fried 2 | . 2 Impact Corruptions 3 | . 3 Robots Melted 1 | . 1 Combat Hostiles 1 | . 1 Parts Melted 1 | 1 . Heat Transferred 888 | 74 814 Parts Sabotaged . | . . Parts Stolen . | . . Parts Stripped . | . . Power Chain Reactions . | . . Alert | -11 -10 ------- Run | Yrd Mat Maximum Alert Level . | . . Low Security (%) 100 | 100 100 Level 1 . | . . Level 2 . | . . Level 3 . | . . Level 4 . | . . Level 5 . | . . High Security . | . . Max Security . | . . Peak Influence 50 | 20 50 Initial 6 | . 6 Average 4 | 3 4 Influence Increases 167 | 20 147 Destroy 0b10 Robot/C 140 | 20 120 Destroy 0b10 Robot/NC 5 | . 5 Destroy Leader 22 | . 22 Influence Decreases 163 | 10 153 Entered New Map 4 | . 4 Time Decay 99 | 10 89 Lost Part 60 | . 60 Squads Dispatched 2 | . 2 Investigation 1 | . 1 Extermination . | . . Reinforcement 1 | . 1 Assault . | . . Garrison . | . . Intercept . | . . Searches Triggered . | . . Construction Impeded . | . . Haulers Reinforced . | . . Active Scanning Responses . | . . Cargo Convoy Interrupts . | . . Stealth | -11 -10 --------- Run | Yrd Mat Distress Signals 2 | . 2 Communications Jammed . | . . Distress Signals . | . . Times Spotted 23 | 1 22 Peak Tracking Total 5 | 1 5 Tactical Retreats 3 | . 3 ECM-based Alert Blocks 4 | . 4 Traps | -11 -10 ------- Run | Yrd Mat Traps Triggered 4 | . 4 Indirectly . | . . Trap Hack Attempts . | . . Triggered . | . . Disarmed . | . . Reprogrammed . | . . Reused . | . . Traps Extracted . | . . Installed . | . . Triggered . | . . Machines | -11 -10 ---------- Run | Yrd Mat Machines Disabled . | . . Max in Single Turn . | . . Machines Repaired . | . . Machines Dismantled . | . . Machines Sabotaged . | . . Overloaded Fab Kills . | . . Hacking | -11 -10 --------- Run | Yrd Mat Machines Accessed 3 | . 3 Terminals 1 | . 1 Fabricators . | . . Repair Stations . | . . Recycling Units 2 | . 2 Scanalyzers . | . . Garrison Access . | . . Total Hacks 3 | . 3 Successful 2 | . 2 Failed 1 | . 1 Catastrophic 1 | . 1 Database Lockouts . | . . Manual . | . . Terminals 1 | . 1 Fabricators . | . . Repair Stations . | . . Recycling Units 2 | . 2 Scanalyzers . | . . Garrison Access . | . . Terminal Hacks . | . . Fabricator Hacks . | . . Repair Station Hacks . | . . Recycling Unit Hacks 2 | . 2 Report Inventory 2 | . 2 Scanalyzer . | . . Garrison Access Hacks . | . . Unauthorized Hacks . | . . Terminals . | . . Fabricators . | . . Repair Stations . | . . Recycling Units . | . . Scanalyzers . | . . Garrison Access . | . . Data Cores Recovered . | . . Used . | . . Hacking Detections 2 | . 2 Full Trace Events . | . . Feedback Events . | . . Feedback Blocked . | . . Robot Schematics Acquired . | . . Robots Built . | . . Authchips . | . . Time . | . . Total Robot Build Rating . | . . Part Schematics Acquired . | . . Parts Built . | . . Authchips . | . . Time . | . . Total Part Build Rating . | . . Part Studies Acquired . | . . Parts Repaired . | . . Time . | . . Parts Recycled . | . . Recycled Matter . | . . Retrieved Matter . | . . Retrieved Components . | . . Parts Scanalyzed . | . . Part Schematics Acquired . | . . Parts Damaged . | . . Bothacking | -11 -10 ------------ Run | Yrd Mat Used RIF Installer . | . . Robots Hacked . | . . Non-combat . | . . Combat . | . . Robot Hacks Applied . | . . Relay Couplers Released . | . . Fabnet Peak Effective % . | . . Robots Rewired . | . . Allies Hacked . | . . Hacks Repelled . | . . Allies | -11 -10 -------- Run | Yrd Mat Total Allies . | . . Largest Group . | . . Highest-Rated Group . | . . Highest-Rated Ally . | . . Total Orders . | . . Ally Attacks . | . . Total Damage . | . . Kills . | . . Allies Corrupted . | . . Allies Melted . | . . Intel | -11 -10 ------- Run | Yrd Mat Active Infowar (turns) 683 | . 683 ECM 683 | . 683 Robot Analysis Total . | . . Derelict Logs Recovered . | . . Drone Launches . | . . Drone Recoveries . | . . Exploration | -11 -10 ------------- Run | Yrd Mat Turns Passed 777 | 79 698 Spaces Moved 601 | 89 512 Core 95 | 20 75 Treads . | . . Legs . | . . Wheels 506 | 69 437 Hover . | . . Flight . | . . Fastest Speed 50 | 50 80 Average Speed 103 | 73 108 Slowest Speed 200 | 80 200 Overloaded Moves . | . . Propulsion Burnouts . | . . Robots Hopped . | . . Potential Cave-ins . | . . Cave-ins Triggered . | . . Exploration Rate (%) 32 | 5 59 Regions Visited 1 Branch Regions . Pre-discovered Areas . | . . Known Exits Taken . | . . Unknown Exits Taken 1 | 1 . Scrap Searched . | . . Spaces Dug . | . . Terrain Destroyed . | . . Melee . | . . Projectile . | . . AOE . | . . Terrain Rammed . | . . Walls Destroyed . | . . Machines Disabled . | . . Actions | -11 -10 --------- Run | Yrd Mat Total 694 | 96 598 Wait 38 | . 38 Move 600 | 88 512 Hop . | . . Pick Up 9 | 1 8 Fast Attach 8 | 5 3 Attach 4 | . 4 Detach 1 | . 1 Swap 1 | . 1 Drop . | . . Fire 18 | 2 16 Melee 15 | . 15 Ram . | . . Kick . | . . Crush . | . . Escape Stasis . | . . Rewire . | . . Trap . | . . Miscellaneous . | . . Route ------- -11/Scrapyard -10/Materials (discovered 4 exits: [*Mat x2] / [*Min] / [*Sub]) History --------- Turn | Location | Event 2 | -11/Scrapyard | Met Revision 17 47 | -11/Scrapyard | Discovered new exit (range 8) 80 | -11/Scrapyard | Entered Materials 302 | -10/Materials | Discovered new exit (range 12) 309 | -10/Materials | Lost 4 parts (1p1n1u1w) 315 | -10/Materials | Build established: Mutant 441 | -10/Materials | Discovered new exit (range 15) 574 | -10/Materials | Discovered new exit (range 16) 643 | -10/Materials | Discovered new exit (range 12) 743 | -10/Materials | Core integrity fell below 50% 774 | -10/Materials | Core integrity fell below 20% 778 | -10/Materials | Destroyed by S-10 Pest with Light Assault Rifle Last Messages --------------- 00643_ EXIT=FOUND 00649_ Triggered Blade Trap. 00649_ Massive razor-sharp blades shoot up from within the floor. 00649_ Ion Engine severed. 00663_ Acquired Lgt. Armor Plating. 00714_ System corrupted: Matter fused (-8). 00736_ Destroyed Flight Unit. 00736_ S-10 Pest system corrupted by crushing effect. 00737_ S-10 Pest system terminally corrupted. [Achievement: Power Corrupts] 00737_ Flight Unit fried. 00737_ Lgt. Ion Engine fried. 00744_ Med. Laser destroyed. 00752_ Destroyed Flight Unit. 00752_ S-10 Pest system corrupted by crushing effect. 00752_ S-10 Pest destroyed. 00760_ Lgt. Ion Engine destroyed. 00771_ Destroyed Flight Unit. 00771_ S-10 Pest system corrupted by crushing effect. 00778_ >GGR85PPIPDERPPZ,O0ZGB=/ZTV/73L 0K Map ----- +----------------------------------------------------+ | ?????????????????????????????????????????????????? | | ?????????????????????????????????????????????????? | | ?????????????????????????????????????????????????? | | ?????????????????????????????????????????????????? | | ?????????????????????????????????????????????????? | | ?????????????????????????????????????????????????? | | ?????????????????????????????????????????????????? | | ? ????????????????????? ???????????????????????? | | ? ####????????????????? ???????????????????????? | | ? ????????????????? ???????????????????????? | | ? ????????????????? ???????????????????????? | | ? ????????????????? "??????? #????????????? | | ?# #?????????????????#k "?????! #????????????? | | ?# #?????????????????# "????!! #????????????? | | ?# #?????????????????# ? !! #????????????? | | ?# #?????????????????# ??????????????? | | ?# #?????????????????# """ = ???????????????? | | ?# #?????????????????# """ ????????????????? | | ?# #????????????????? u """ ??????????????????? | | ?# #?????????????????# s ???????????????????? | | ?# ########??????????# s ????????????????????? | | ## #??????????# ss#?????????????????????? | | #??????????# #?????????????????????? | | ## #??????????# #?????????????????????? | | ?### #### #??????????# #?????????????????????? | | ####+#### #??????##### @ #?????????????????????? | | # #?????##! ## ##????????????????????? | | # #?????#! r% #????????????????????? | | !!! # #?????#! % #????????????????????? | | !!! """ + #?????#! #????????????????????? | | """ # #?????#! #????????????????????? | | """ # #?????##! #????????????????????? | | # #??????#####^ ###########???????????? | | # *^#??????????#^ # #???????????? | | ######### #??????????# # """ """ #???????????? | | ######### #??????????# + """ """ #???????????? | | ############ # """ """ #???????????? | | # ## # #???????????? | | ######### + / ###########???????????? | | ????????# # ###+###########????????????? | | ????????# < # # #????????????? | | ????????# # # """ """ """ #????????????? | | ????????##### # """ """ """ #????????????? | | ????????????# # """ """ """ #????????????? | | ????????????# # #????????????? | | ????????????########### #????????????? | | ??????????????????????###############????????????? | | | | | | | +----------------------------------------------------+ Best States ------------- Heat Dissipation 35 Energy Generation 10 Energy Capacity 250 Matter Stores 300 Matter Capacity 400 Sight Range 16 Terrain Scan Density 10 ECM Strength 1 Evasion (%) 50 Item Schematics ----------------- None Robot Schematics ------------------ None Fabricated ------------ Nothing Repaired ---------- Nothing Studied --------- None Alien Tech Used ----------------- None Achievements -------------- It's Just You Power Corrupts Challenges ------------ None Game ------ Seed TargetPulseTurretformer Manual? 0 Play Time 00:25:15 Cumulative 1.8 hours Start 2026.04.26 @ 22:29:27 End 2026.04.26 @ 23:03:06 Sessions 1 Manual Loads 0 Difficulty Rogue Special Mode None Game No. 3 Rogue 3 Adventurer 0 Explorer 0 Win Type - Total 0 Types 0/0/0/0/0/0/0/0/0/0 Lore% 0 Gallery% 1 Achievement% 2 Wizard Run 0 Options --------- Layout 0 ASCII 1 Keyboard 1 Movement Vi Keybinds 0 Fullscreen 1 Font 36/X11++ Map View 76x50 Zoom Use 0% Tactical HUD 1 Map Filters NONE Filters NONE Steam 1 RUN: aab4fd43-8f3a-444f-b8d3-9b881592d830